bitfinex-derivatives/quotes_BTCF0:USTF0_20241125
["timestamp","ask_amount","ask_price","bid_price","bid_amount"]
[1732573774969,0.00012215,93473.0,93472.0,2.18185917]
[1732573775673,1e-08,93473.0,93472.0,2.18185917]
[1732573776771,1e-08,93473.0,93472.0,2.1852039]
[1732573776967,1e-08,93473.0,93472.0,2.18185917]
[1732573777176,1e-08,93473.0,93472.0,2.37713736]
[1732573777368,1e-08,93473.0,93472.0,2.48520382]
[1732573777775,0.09475973,93490.0,93472.0,2.48520382]
[1732573777776,0.09475973,93490.0,93489.0,0.05349]
[1732573777978,0.0345,93508.0,93494.0,0.053487]
[1732573777979,0.09475973,93496.0,93494.0,0.053487]
[1732573778170,1.10084,93500.0,93489.0,0.63413]
[1732573778171,1.10084,93500.0,93495.0,0.32088]
[1732573778372,1.10084,93500.0,93499.0,0.414285]
[1732573778373,1.1,93500.0,93499.0,0.414285]
[1732573778678,1.153484,93500.0,93499.0,0.41442204]
[1732573778881,1.1,93500.0,93499.0,0.41442204]
[1732573779175,1.1,93500.0,93499.0,0.36093704]
[1732573779400,1.1,93500.0,93499.0,0.68177704]
[1732573779771,1.1,93500.0,93499.0,0.75217704]
[1732573779976,1.1,93500.0,93499.0,1.05217704]
[1732573780170,0.19815974,93500.0,93499.0,1.05217704]
[1732573780376,0.19815974,93500.0,93499.0,0.36093704]
[1732573780575,0.19815974,93500.0,93499.0,0.58073704]
[1732573781080,0.19815974,93500.0,93499.0,0.58173704]
[1732573781468,0.19815974,93500.0,93499.0,0.36193704]
[1732573781670,0.19815974,93500.0,93499.0,0.58173704]
[1732573781969,0.19815974,93500.0,93499.0,0.33785871]
[1732573782170,0.25164374,93500.0,93499.0,0.55765871]
[1732573782371,0.25164374,93500.0,93499.0,0.33785871]
[1732573782573,0.87979974,93500.0,93478.0,0.3608]
[1732573782770,0.87979974,93500.0,93470.0,0.11165274]
[1732573782771,0.053501,93471.0,93470.0,0.00160458]
[1732573782980,0.053501,93471.0,93444.0,0.3608]
[1732573782981,0.053508,93458.0,93444.0,0.3608]
[1732573783178,0.053515,93446.0,93445.0,1.5]
[1732573783574,0.053515,93446.0,93445.0,1.50011351]
[1732573784174,0.053515,93446.0,93445.0,0.00011351]
[1732573784482,0.05352,93438.0,93436.0,0.37436158]
[1732573784682,0.05352,93438.0,93437.0,1.5]
[1732573785480,0.05352,93438.0,93437.0,1.50011121]
[1732573786276,0.05352,93438.0,93437.0,0.00011121]
[1732573786783,0.1384412,93448.0,93440.0,0.053518]
[1732573786784,0.0945925,93441.0,93440.0,0.053518]
[1732573787083,0.053518,93441.0,93437.0,0.00011121]
[1732573787387,0.053518,93441.0,93438.0,0.053519]
[1732573787878,0.053518,93441.0,93437.0,0.00011121]
[1732573787879,0.053515,93447.0,93445.0,0.053515]
[1732573788075,0.053511,93454.0,93437.0,0.11015937]
[1732573788583,0.053511,93453.0,93445.0,0.3608]
[1732573788782,0.053511,93453.0,93451.0,0.053512]
[1732573788984,8.577e-05,93463.0,93451.0,0.053512]
[1732573789289,8.577e-05,93463.0,93445.0,0.3608]
[1732573789290,0.053514,93447.0,93445.0,0.053515]
[1732573789588,0.053508,93458.0,93437.0,0.00011121]
[1732573789787,0.21304,93457.0,93437.0,0.01335914]
[1732573789983,0.053519,93440.0,93437.0,0.00011121]
[1732573790179,0.053519,93439.0,93437.0,0.05363121]
[1732573790585,0.053519,93439.0,93437.0,0.00011121]
[1732573790786,0.053519,93439.0,93437.0,0.05363121]
[1732573791383,0.053519,93439.0,93437.0,0.00011121]
[1732573791776,0.053519,93439.0,93437.0,0.05363121]
[1732573791981,0.053519,93439.0,93437.0,0.00011121]
[1732573798782,0.06687305,93439.0,93437.0,0.00011121]
[1732573799887,0.32108,93438.0,93437.0,0.00011121]
[1732573800091,0.053528,93424.0,93423.0,0.3608]
[1732573800796,0.05353,93419.0,93400.0,0.1]
[1732573800993,0.053541,93401.0,93400.0,0.1]
[1732573801192,0.053546,93392.0,93381.0,0.00012857]
[1732573801395,0.053542,93398.0,93381.0,0.00012857]
[1732573801396,0.0352,93391.0,93381.0,0.00012857]
[1732573801595,0.053552,93382.0,93381.0,0.00012857]
[1732573801999,0.374832,93382.0,93381.0,0.00012857]
[1732573802193,0.053558,93370.0,93369.0,0.3608]
[1732573803301,0.374878,93370.0,93369.0,0.36087663]
[1732573803492,0.374878,93370.0,93369.0,7.663e-05]
[1732573803693,0.053561,93365.0,93364.0,0.00160655]
[1732573804087,0.374881,93365.0,93364.0,0.00160655]
[1732573804296,0.374881,93365.0,93342.0,0.3608]
[1732573804297,0.32132,93365.0,93342.0,0.3608]
[1732573804505,0.053563,93362.0,93342.0,0.3608]
[1732573804691,0.053569,93353.0,93344.0,0.053573]
[1732573805795,0.3608,93364.0,93359.0,0.053564]
[1732573806098,0.05356,93368.0,93363.0,0.3608]
[1732573806299,0.02142173,93382.0,93363.0,0.3608]
[1732573806300,0.20656,93376.0,93363.0,0.3608]
[1732573806493,0.053562,93365.0,93363.0,0.3608]
[1732573807491,0.053568,93354.0,93352.0,0.3608]
[1732573807691,0.3608,93353.0,93343.0,9.906e-05]
[1732573808000,0.3608,93353.0,93308.0,0.0027]
[1732573808001,0.05359,93315.0,93303.0,0.056297]
[1732573808199,0.3608,93318.0,93304.0,0.053596]
[1732573808404,0.3608,93318.0,93302.0,0.36240762]
[1732573808603,0.414389,93318.0,93308.0,0.053594]
[1732573808800,0.414389,93318.0,93309.0,0.00011056]
[1732573809721,0.3608,93318.0,93309.0,0.00011056]
[1732573809924,0.414389,93318.0,93309.0,0.00011056]
[1732573810121,0.3608,93318.0,93309.0,0.00011056]
[1732573810325,0.053593,93310.0,93309.0,0.00011056]
[1732573811021,0.414393,93310.0,93309.0,0.00011056]
[1732573813122,0.3608,93310.0,93309.0,0.00011056]
[1732573814324,0.3608,93318.0,93309.0,0.00011056]
[1732573814525,0.3608,93317.0,93309.0,0.00011056]
[1732573815021,0.053593,93311.0,93309.0,0.00011056]
[1732573817327,0.3608,93317.0,93309.0,0.00011056]
[1732573817928,0.053591,93313.0,93309.0,0.00011056]
[1732573818418,0.053591,93313.0,93309.0,0.05370356]
[1732573819029,0.053593,93311.0,93309.0,0.00011056]
[1732573820728,0.06709764,93311.0,93309.0,0.00011056]
[1732573821319,0.32152,93310.0,93309.0,0.00011056]
[1732573821519,0.32152,93310.0,93285.0,0.3608]
[1732573821828,0.3608,93290.0,93278.0,0.00160793]
[1732573822023,0.05361,93280.0,93278.0,0.00160793]
[1732573822621,0.05361,93280.0,93279.0,8.959e-05]
[1732573822824,0.41441,93280.0,93279.0,8.959e-05]
[1732573823027,0.053606,93287.0,93279.0,8.959e-05]
[1732573823230,0.053608,93284.0,93279.0,8.959e-05]
[1732573823433,0.053609,93282.0,93279.0,8.959e-05]
[1732573824023,0.05361,93280.0,93279.0,8.959e-05]
[1732573824329,0.053607,93286.0,93279.0,8.959e-05]
[1732573824523,0.053608,93285.0,93279.0,8.959e-05]
[1732573824925,0.36184001,93304.0,93284.0,0.3608]
[1732573825233,0.1262901,93355.0,93279.0,8.959e-05]
[1732573825234,0.3608,93305.0,93299.0,0.053599]
[1732573825427,0.3608,93305.0,93300.0,0.0337]
[1732573825930,0.053596,93306.0,93300.0,0.0337]
[1732573826528,0.05520665,93301.0,93300.0,0.0337]
[1732573826725,0.41600665,93301.0,93300.0,0.0337]
[1732573827331,0.41600665,93301.0,93300.0,0.04665091]
[1732573827530,0.41600665,93301.0,93300.0,0.0337]
[1732573827729,0.41600665,93301.0,93300.0,0.04665117]
[1732573828137,0.41600665,93301.0,93300.0,0.0337]
[1732573828339,0.36240865,93301.0,93300.0,0.04663148]
[1732573828933,0.36240865,93301.0,93300.0,1.54663148]
[1732573829233,0.36240865,93301.0,93300.0,1.5337]
[1732573829439,0.36240865,93301.0,93300.0,1.54777216]
[1732573829440,0.00160865,93301.0,93300.0,1.54777216]
[1732573829737,0.00160865,93301.0,93300.0,1.53486583]
[1732573830039,0.00160865,93301.0,93300.0,1.54777351]
[1732573830235,0.00160865,93301.0,93300.0,0.03486583]
[1732573830935,0.00160865,93301.0,93300.0,0.00116583]
[1732573831827,0.00090517,93301.0,93300.0,0.00116583]
[1732573832524,0.05450317,93301.0,93300.0,0.00205008]
[1732573833336,0.37606317,93301.0,93300.0,0.00205008]
[1732573836140,0.053608,93283.0,93280.0,0.0343]
[1732573836334,0.3608,93282.0,93275.0,0.15981397]
[1732573836534,0.3608,93282.0,93271.0,0.053615]
[1732573836737,0.053613,93276.0,93275.0,0.053613]
[1732573837135,0.053613,93276.0,93274.0,0.39005304]
[1732573837344,0.053613,93276.0,93275.0,0.00010095]
[1732573839640,0.09496482,93298.0,93275.0,0.00010095]
[1732573839842,0.36170517,93301.0,93275.0,0.00010095]
[1732573839843,0.00090517,93301.0,93300.0,0.053599]
[1732573840350,0.00090517,93301.0,93286.0,0.19304]
[1732573840351,0.01424938,93301.0,93293.0,0.19231]
[1732573840537,0.01424938,93301.0,93287.0,0.29011334]
[1732573840538,0.053604,93291.0,93287.0,0.22601]
[1732573840736,0.3608,93294.0,93287.0,0.0337]
[1732573840940,0.053605,93289.0,93288.0,0.053605]
[1732573841639,0.3608,93294.0,93287.0,0.0337]
[1732573841843,0.053603,93293.0,93292.0,0.053603]
[1732573842332,0.3608,93294.0,93293.0,0.053603]
[1732573844551,0.00090517,93301.0,93300.0,0.053599]
[1732573845149,0.00090517,93301.0,93300.0,0.37878131]
[1732573845343,0.00090517,93301.0,93300.0,0.13455408]
[1732573845551,0.00090517,93301.0,93300.0,0.1357772]
[1732573846044,0.3608,93314.0,93300.0,0.1357772]
[1732573846045,0.3608,93314.0,93313.0,0.053591]
[1732573846247,0.45576482,93325.0,93313.0,0.19414769]
[1732573846248,0.36188001,93325.0,93313.0,0.19414769]
[1732573846555,0.06674427,93325.0,93324.0,0.053585]
[1732573846741,8.182e-05,93329.0,93324.0,0.00011076]
[1732573846942,0.414384,93325.0,93324.0,0.00011076]
[1732573847249,0.414384,93325.0,93324.0,0.00191702]
[1732573847640,0.414384,93325.0,93324.0,0.05550202]
[1732573847641,0.415384,93325.0,93324.0,0.05550202]
[1732573848038,0.415384,93325.0,93324.0,0.00191702]
[1732573848444,0.735824,93325.0,93324.0,0.00191702]
[1732573848841,0.83078882,93325.0,93324.0,0.00191702]
[1732573849046,0.735824,93325.0,93324.0,0.00191702]
[1732573849251,0.83078882,93325.0,93324.0,0.00191702]
[1732573849456,0.735824,93325.0,93324.0,0.00191702]
[1732573849852,0.83077784,93325.0,93324.0,0.00191702]
[1732573850044,0.735824,93325.0,93324.0,0.00191702]
[1732573850448,0.735824,93325.0,93291.0,0.68068924]
[1732573850449,0.0536,93298.0,93296.0,0.22474143]
[1732573850649,0.0536,93297.0,93296.0,0.0324]
[1732573850955,0.0536,93297.0,93296.0,0.00335162]
[1732573851146,0.3608,93305.0,93293.0,0.18656]
[1732573851147,0.053596,93304.0,93295.0,0.053601]
[1732573851347,0.053601,93297.0,93295.0,0.053601]
[1732573851550,0.0536,93297.0,93296.0,0.00010953]
[1732573852255,0.0536,93297.0,93282.0,0.27791002]
[1732573852256,0.68236,93297.0,93281.0,0.00160795]
[1732573852444,0.053609,93283.0,93281.0,0.00160795]
[1732573853252,0.053609,93283.0,93282.0,8.731e-05]
[1732573853452,0.353609,93283.0,93282.0,8.731e-05]
[1732573853656,0.353609,93283.0,93262.0,0.05362]
[1732573853657,0.05362,93263.0,93262.0,0.19234143]
[1732573853844,0.7216,93263.0,93256.0,0.19234143]
[1732573854044,0.7216,93263.0,93253.0,0.01321472]
[1732573854045,0.053625,93255.0,93253.0,0.01321472]
[1732573854256,0.053625,93255.0,93239.0,0.1866]
[1732573854551,0.3608,93256.0,93239.0,0.1866]
[1732573854552,0.053628,93250.0,93241.0,0.0001247]
[1732573854957,0.053628,93250.0,93242.0,0.1866]
[1732573855155,0.053628,93250.0,93241.0,0.0001247]
[1732573855357,0.053628,93249.0,93241.0,0.0001247]
[1732573855549,0.053628,93249.0,93243.0,0.053631]
[1732573856149,0.053628,93249.0,93244.0,0.1866]
[1732573856544,0.053628,93249.0,93245.0,0.05363]
[1732573856750,0.3608,93256.0,93244.0,0.1866]
[1732573856955,0.05363,93246.0,93244.0,0.1866]
[1732573857455,0.3608,93248.0,93242.0,0.053632]
[1732573857655,0.3608,93248.0,93244.0,0.053631]
[1732573857855,0.3608,93248.0,93241.0,0.1867247]
[1732573858065,0.3608,93248.0,93241.0,0.2403567]
[1732573858250,0.3608,93248.0,93243.0,0.053631]
[1732573858554,0.053628,93249.0,93243.0,0.053631]
[1732573858852,0.01336962,93254.0,93241.0,0.0001247]
[1732573858853,0.3608,93247.0,93241.0,0.0001247]
[1732573859060,0.053631,93243.0,93241.0,0.0001247]
[1732573859260,0.3608,93247.0,93241.0,0.0001247]
[1732573859856,0.3608,93247.0,93243.0,0.053631]
[1732573860158,0.053628,93249.0,93243.0,0.053631]
[1732573860451,0.053629,93248.0,93241.0,0.0001247]
[1732573860656,0.3608,93245.0,93241.0,0.0001247]
[1732573860858,0.3608,93245.0,93243.0,0.053631]
[1732573861157,0.3608,93253.0,93252.0,0.053626]
[1732573861548,0.01329246,93257.0,93256.0,0.053624]
[1732573861748,0.3608,93265.0,93259.0,0.053622]
[1732573861952,0.09492483,93269.0,93250.0,0.18664]
[1732573862159,0.3608,93273.0,93268.0,0.053617]
[1732573862354,0.37433699,93273.0,93258.0,0.3608]
[1732573862556,0.37433699,93273.0,93271.0,0.053615]
[1732573862748,0.00160894,93275.0,93272.0,0.00010377]
[1732573862951,0.00160894,93275.0,93273.0,0.053614]
[1732573863268,0.01348888,93290.0,93287.0,0.053606]
[1732573863561,0.01348888,93290.0,93289.0,0.3608]
[1732573863748,0.01348888,93290.0,93289.0,0.7216]
[1732573863954,0.3608,93320.0,93290.0,0.053726]
[1732573864151,0.3608,93320.0,93319.0,0.053588]
[1732573864848,0.01359979,93327.0,93319.0,0.053588]
[1732573865160,0.05359,93315.0,93302.0,0.54744]
[1732573865350,0.053587,93320.0,93302.0,0.54744]
[1732573865551,0.053587,93320.0,93318.0,0.053588]
[1732573865857,0.3608,93321.0,93299.0,0.053599]
[1732573865858,0.05359,93315.0,93311.0,0.053592]
[1732573866057,0.414391,93313.0,93311.0,0.053592]
[1732573866252,0.3608,93313.0,93311.0,0.053592]
[1732573870061,0.37444891,93321.0,93320.0,0.053587]
[1732573870265,0.3608,93321.0,93320.0,0.053587]
[1732573872665,0.053586,93323.0,93321.0,0.053586]
[1732573872871,0.053587,93320.0,93318.0,0.053588]
[1732573873169,0.053586,93322.0,93316.0,0.3608]
[1732573873361,8.182e-05,93329.0,93316.0,0.3608]
[1732573873564,0.053586,93323.0,93319.0,0.053587]
[1732573873752,0.053586,93323.0,93321.0,0.053586]
[1732573874864,0.01357301,93329.0,93328.0,0.053582]
[1732573875071,0.01357301,93329.0,93328.0,0.00010016]
[1732573875072,0.06715501,93329.0,93328.0,0.00010016]
[1732573875564,0.01357301,93329.0,93328.0,0.05368216]
[1732573876265,0.00160836,93343.0,93328.0,0.69276356]
[1732573876463,0.09492483,93369.0,93349.0,0.05357]
[1732573876761,0.053553,93379.0,93368.0,0.053559]
[1732573876762,0.053554,93378.0,93368.0,0.053559]
[1732573876964,0.053554,93378.0,93350.0,0.1834]
[1732573876965,0.09492483,93386.0,93384.0,0.05355]
[1732573877166,0.00120001,93390.0,93389.0,0.053547]
[1732573877464,0.3608,93417.0,93389.0,0.18347357]
[1732573877655,0.053528,93423.0,93412.0,0.053534]
[1732573877854,0.00120001,93414.0,93412.0,0.053534]
[1732573878267,0.02144741,93419.0,93408.0,0.3608]
[1732573878457,0.05353,93420.0,93415.0,0.053532]
[1732573878654,0.053527,93425.0,93408.0,0.3608]
[1732573878860,0.053529,93421.0,93416.0,0.053531]
[1732573879058,0.053529,93421.0,93417.0,0.053531]
[1732573879260,0.3608,93426.0,93419.0,0.05353]
[1732573879458,0.414326,93426.0,93409.0,0.053536]
[1732573879662,0.003,93419.0,93416.0,0.053532]
[1732573879868,0.003,93419.0,93417.0,0.053531]
[1732573880061,0.003,93419.0,93408.0,0.3608]
[1732573880262,0.003,93419.0,93418.0,0.053531]
[1732573880958,0.012,93419.0,93418.0,0.053531]
[1732573881159,0.009,93419.0,93418.0,0.053531]
[1732573882572,0.009,93419.0,93418.0,0.054531]
[1732573883060,0.009,93419.0,93416.0,0.3608]
[1732573883061,0.002,93419.0,93417.0,0.053531]
[1732573883860,0.3608,93443.0,93432.0,0.053523]
[1732573884062,0.3608,93460.0,93432.0,0.958363]
[1732573884063,0.053512,93451.0,93432.0,0.958363]
[1732573884262,0.053512,93451.0,93447.0,0.053514]
[1732573884462,0.053512,93451.0,93444.0,0.3608]
[1732573884664,0.02142379,93457.0,93451.0,0.053512]
[1732573884962,0.053501,93471.0,93452.0,0.54404]
[1732573885163,0.053501,93471.0,93460.0,0.3608]
[1732573885365,0.053501,93471.0,93461.0,9.77e-05]
[1732573885963,0.3608,93479.0,93461.0,9.77e-05]
[1732573885964,0.3608,93479.0,93467.0,0.053503]
[1732573886865,0.053499,93474.0,93467.0,0.053503]
[1732573887256,0.3618,93479.0,93467.0,0.053503]
[1732573887461,0.3618,93479.0,93468.0,0.053502]
[1732573887658,0.001,93479.0,93470.0,0.3608]
[1732573887873,0.001,93479.0,93472.0,0.0535]
[1732573888470,0.001,93479.0,93470.0,0.3608]
[1732573888670,0.001,93479.0,93478.0,0.3608]
[1732573888873,0.3608,93492.0,93478.0,0.3608]
[1732573889372,0.053493,93485.0,93478.0,0.3608]
[1732573889668,0.8118,93499.0,93481.0,0.3608]
[1732573889669,0.00084,93499.0,93481.0,0.3608]
[1732573889860,0.18316,93523.0,93494.0,0.3608]
[1732573889861,0.053477,93512.0,93494.0,0.3608]
[1732573890068,0.053477,93512.0,93495.0,0.18316]
[1732573890366,0.053477,93512.0,93499.0,0.053484]
[1732573890561,0.053472,93521.0,93499.0,0.053484]
[1732573890763,0.11783327,93500.0,93499.0,0.37443896]
[1732573891369,0.06783327,93500.0,93499.0,0.37443896]
[1732573892361,0.06783327,93500.0,93499.0,0.37543896]
[1732573894372,0.06783327,93500.0,93499.0,1.87543896]
[1732573895169,0.06783327,93500.0,93499.0,1.55459896]
[1732573895370,0.06783327,93500.0,93499.0,0.00111496]
[1732573897769,0.06783327,93500.0,93499.0,0.00011496]
[1732573897969,0.06783327,93500.0,93499.0,0.00111496]
[1732573898473,0.06783327,93500.0,93499.0,0.18415496]
[1732573900375,0.06783327,93500.0,93499.0,1.31543496]
[1732573900876,0.032,93535.0,93499.0,1.61543496]
[1732573901079,0.032,93535.0,93530.0,0.053467]
[1732573901080,0.085464,93535.0,93530.0,0.053467]
[1732573901374,0.032,93535.0,93530.0,0.053467]
[1732573901576,0.053466,93532.0,93530.0,0.053467]
[1732573901768,0.053466,93532.0,93531.0,0.00011616]
[1732573901970,0.032,93535.0,93531.0,0.36091616]
[1732573902172,0.053466,93532.0,93531.0,0.36091616]
[1732573902677,0.053466,93532.0,93499.0,0.503684]
[1732573902678,0.053477,93512.0,93510.0,0.3608]
[1732573902885,0.053477,93512.0,93504.0,0.3608]
[1732573902886,0.053481,93505.0,93504.0,0.3608]
[1732573903190,0.3608,93520.0,93503.0,0.18304]
[1732573903379,0.3608,93520.0,93497.0,1.94956]
[1732573903380,0.053475,93516.0,93504.0,0.18304]
[1732573903578,0.3608,93529.0,93515.0,0.414275]
[1732573903787,0.3608,93529.0,93516.0,0.3608]
[1732573903788,0.053473,93519.0,93516.0,0.3608]
[1732573904469,0.053473,93519.0,93515.0,0.18304]
[1732573904470,0.053466,93531.0,93515.0,0.18304]
[1732573904672,0.039,93535.0,93526.0,0.053469]
[1732573904673,0.053467,93529.0,93526.0,0.053469]
[1732573905475,0.032,93535.0,93526.0,0.053469]
[1732573905673,0.053468,93528.0,93526.0,0.053469]
[1732573905970,0.053468,93527.0,93524.0,0.183]
[1732573906184,0.053468,93527.0,93526.0,0.001]
[1732573906573,0.009,93529.0,93527.0,0.053468]
[1732573906981,0.014,93529.0,93527.0,0.053468]
[1732573907281,0.005,93529.0,93527.0,0.05245596]
[1732573907680,0.041,93535.0,93527.0,0.05245596]
[1732573907877,0.053469,93527.0,93526.0,0.001]
[1732573908079,0.002,93529.0,93526.0,0.001]
[1732573908285,0.053468,93528.0,93526.0,0.001]
[1732573908476,0.002,93529.0,93524.0,0.18284]
[1732573908783,0.053473,93520.0,93519.0,0.18284]
[1732573908980,0.053473,93519.0,93518.0,0.18284]
[1732573909173,0.3608,93525.0,93515.0,0.18284]
[1732573909382,0.053477,93513.0,93508.0,0.053479]
[1732573909579,0.3608,93516.0,93508.0,0.053479]
[1732573909580,0.053477,93512.0,93508.0,0.053479]
[1732573909780,0.3608,93516.0,93515.0,0.053475]
[1732573910181,0.37138898,93533.0,93515.0,0.053475]
[1732573910383,0.053474,93517.0,93516.0,0.18284]
[1732573910780,0.053467,93530.0,93510.0,0.053478]
[1732573910978,0.053477,93513.0,93511.0,0.19822237]
[1732573911279,0.053476,93513.0,93512.0,0.18284]
[1732573911688,0.053476,93513.0,93505.0,0.00010915]
[1732573911689,0.05348,93507.0,93505.0,0.00010915]
[1732573911885,0.053486,93496.0,93495.0,0.36216064]
[1732573912082,0.053486,93496.0,93495.0,0.00869515]
[1732573912280,0.053486,93496.0,93486.0,0.44948]
[1732573912281,0.053482,93503.0,93490.0,0.18284]
[1732573912480,0.053489,93491.0,93489.0,1.50056]
[1732573912784,0.053489,93491.0,93490.0,9.113e-05]
[1732573913580,0.3608,93506.0,93490.0,0.32197113]
[1732573913784,0.3608,93517.0,93494.0,0.3608]
[1732573913785,0.053482,93504.0,93494.0,0.3608]
[1732573913980,0.3608,93517.0,93494.0,0.3608]
[1732573914182,0.3608,93517.0,93515.0,0.053475]
[1732573914383,0.053469,93526.0,93517.0,0.053474]
[1732573914583,0.053467,93530.0,93519.0,0.053473]
[1732573914794,0.053467,93530.0,93519.0,0.3608]
[1732573915086,0.053466,93532.0,93527.0,0.053468]
[1732573915392,0.0304,93537.0,93527.0,0.053468]
[1732573915592,0.0304,93537.0,93524.0,0.05347]
[1732573915888,0.053468,93528.0,93525.0,0.053469]
[1732573916691,0.005,93532.0,93531.0,0.053466]
[1732573916894,0.005,93532.0,93531.0,0.236306]
[1732573918591,0.053457,93548.0,93537.0,0.053463]
[1732573918889,0.414252,93557.0,93537.0,0.3608]
[1732573918890,0.09492483,93556.0,93537.0,0.3608]
[1732573919093,0.053461,93541.0,93540.0,0.053461]
[1732573920185,0.053461,93541.0,93540.0,0.236261]
[1732573920584,0.056461,93541.0,93540.0,0.1828]
[1732573920987,0.056461,93541.0,93537.0,0.3608]
[1732573920988,0.053462,93538.0,93537.0,0.3608]
[1732573921298,0.053462,93538.0,93537.0,0.5436]
[1732573921493,0.053462,93538.0,93537.0,0.3608]
[1732573921793,0.053462,93538.0,93537.0,0.5436]
[1732573921988,0.01,93541.0,93537.0,0.1828]
[1732573922189,0.01,93541.0,93537.0,0.12261957]
[1732573922190,0.053462,93538.0,93537.0,0.12261957]
[1732573922387,0.053465,93533.0,93531.0,0.053466]
[1732573922584,0.053465,93533.0,93532.0,0.236266]
[1732573922897,0.001,93538.0,93532.0,0.1828]
[1732573923195,0.001,93538.0,93537.0,0.053463]
[1732573923399,0.001,93538.0,93537.0,0.05356965]
[1732573923584,0.001,93538.0,93537.0,0.24591108]
[1732573923894,0.001,93538.0,93537.0,0.05356965]
[1732573924091,0.12542483,93566.0,93553.0,0.053453]
[1732573924092,0.0305,93566.0,93553.0,0.053453]
[1732573924293,0.053453,93554.0,93553.0,0.053453]
[1732573925287,0.053453,93554.0,93553.0,0.054453]
[1732573925485,0.053449,93561.0,93560.0,0.053449]
[1732573926394,9.961e-05,93567.0,93565.0,0.053447]
[1732573926395,0.053446,93566.0,93565.0,0.053447]
[1732573926599,0.053448,93563.0,93562.0,0.053448]
[1732573926998,9.961e-05,93567.0,93557.0,0.0013675]
[1732573927199,0.053447,93565.0,93564.0,0.053447]
[1732573927896,9.961e-05,93567.0,93564.0,0.053447]
[1732573928205,9.961e-05,93567.0,93566.0,0.053446]
[1732573928391,9.961e-05,93567.0,93566.0,0.05678813]
[1732573928700,9.961e-05,93567.0,93566.0,0.06213553]
[1732573928906,9.961e-05,93567.0,93566.0,0.06350086]
[1732573929196,0.05343,93595.0,93574.0,0.00160274]
[1732573929400,0.1,93600.0,93589.0,0.3608]
[1732573929592,0.153427,93600.0,93598.0,0.053428]
[1732573930298,0.1,93600.0,93599.0,0.18283874]
[1732573930694,0.1,93600.0,93599.0,7.874e-05]
[1732573930888,0.101,93600.0,93599.0,7.874e-05]
[1732573931495,0.101,93600.0,93599.0,0.19148511]
[1732573932300,0.101,93600.0,93599.0,0.18613965]
[1732573932509,0.101,93600.0,93599.0,0.18279874]
[1732573932699,0.101,93600.0,93599.0,0.18613966]
[1732573933101,0.101,93600.0,93599.0,0.64072481]
[1732573933495,0.053417,93617.0,93605.0,0.053424]
[1732573933693,0.0213917,93635.0,93600.0,0.16570016]
[1732573933896,0.3608,93658.0,93633.0,0.3608]
[1732573934194,0.053407,93635.0,93634.0,0.00010185]
[1732573934593,0.373807,93635.0,93634.0,0.00010185]
[1732573934902,0.053411,93628.0,93615.0,0.053418]
[1732573935093,0.53422,93635.0,93616.0,0.00868351]
[1732573935094,0.053412,93626.0,93616.0,0.00868351]
[1732573935295,0.053413,93624.0,93614.0,0.01064715]
[1732573935604,0.053413,93624.0,93612.0,0.05342]
[1732573935805,0.053415,93622.0,93611.0,0.3608]
[1732573936002,0.18252,93629.0,93613.0,7.8e-05]
[1732573936301,0.053417,93618.0,93613.0,7.8e-05]
[1732573937005,0.053414,93624.0,93613.0,7.8e-05]
[1732573937599,0.053414,93623.0,93613.0,0.053497]
[1732573937799,0.001,93617.0,93613.0,0.053497]
[1732573938003,0.001,93617.0,93614.0,0.001]
[1732573938506,0.001,93617.0,93613.0,7.8e-05]
[1732573938507,0.053419,93614.0,93613.0,0.001078]
[1732573938697,0.3608,93614.0,93596.0,0.3608]
[1732573939001,0.50292,93616.0,93604.0,0.3608]
[1732573939002,0.00084,93616.0,93604.0,0.3608]
[1732573939206,0.00084,93616.0,93614.0,0.001]
[1732573939207,0.053423,93616.0,93614.0,0.001]
[1732573939501,0.3608,93622.0,93614.0,0.001]
[1732573939699,0.053421,93619.0,93615.0,0.00011685]
[1732573940106,0.3608,93622.0,93615.0,0.00011685]
[1732573940403,0.053422,93617.0,93615.0,0.00011685]
[1732573941394,0.053422,93617.0,93615.0,0.00111685]
[1732573941796,0.053422,93617.0,93615.0,0.00011685]
[1732573942017,0.053422,93617.0,93615.0,0.00111685]
[1732573942018,0.061422,93617.0,93615.0,0.00111685]
[1732573942407,0.055422,93617.0,93615.0,0.00011685]
[1732573942704,0.060422,93617.0,93615.0,0.00011685]
[1732573943500,0.32044,93616.0,93613.0,0.26]
[1732573943707,0.053424,93614.0,93613.0,0.21]
[1732573943917,0.053436,93594.0,93584.0,0.3608]
[1732573944210,0.05343,93605.0,93578.0,0.085445]
[1732573944211,0.053443,93582.0,93578.0,0.032]
[1732573944508,0.053444,93580.0,93579.0,0.00010792]
[1732573945502,0.374044,93580.0,93579.0,0.00010792]
[1732573946001,0.374044,93580.0,93558.0,0.0107345]
[1732573946002,0.053456,93559.0,93558.0,0.0107345]
[1732573946204,0.414256,93559.0,93539.0,0.3608]
[1732573946604,0.053467,93540.0,93539.0,0.3608]
[1732573946800,0.3608,93546.0,93534.0,0.00135946]
[1732573947016,0.053469,93536.0,93535.0,7.718e-05]
[1732573947712,0.374189,93536.0,93535.0,7.718e-05]
[1732573948221,0.374189,93536.0,93535.0,0.00107718]
[1732573948417,0.375189,93536.0,93535.0,0.00107718]
[1732573949715,0.379189,93536.0,93535.0,7.718e-05]
[1732573951711,0.05347,93534.0,93509.0,0.01062691]
[1732573951913,0.053482,93514.0,93502.0,0.21292]
[1732573952214,0.053482,93514.0,93505.0,0.053486]
[1732573952618,0.053482,93514.0,93506.0,7.705e-05]
[1732573953022,0.3608,93518.0,93509.0,0.001]
[1732573953214,0.414279,93518.0,93509.0,0.001]
[1732573953614,0.414279,93518.0,93507.0,0.053485]
[1732573954311,0.05348,93517.0,93507.0,0.053485]
[1732573954512,0.053482,93514.0,93509.0,0.001]
[1732573954924,0.053484,93511.0,93509.0,0.001]